Cogmind - Beta 13 @@@ ROGUE MODE // 2024.04.03 @ 19:04:14 Player: Derauth Result: Self-destructed Performance ------------- Evolutions (1) 500 Regions Visited (2) 400 Robots Destroyed (24) 120 Value Destroyed (491) 491 Prototype IDs (0) 0 Alien Tech Used (0) 0 Bonus (0) 0 TOTAL SCORE: 1511 Bonus ------- None Cogmind --------- Core Integrity 202/400 Matter 153/500 Energy 100/100 System Corruption 0% Temperature Cool (0) Movement Core (100) Ox1 Location -9/Materials Parts ------- > --- POWER (1) -------- (None) > --- PROPULSION (2) --- (None) > --- UTILITY (3) ------ Medium Matter Pod Medium Matter Pod Targeting Computer > --- WEAPON (3) ------- (None) > --- INVENTORY (5) ---- Light Ion Engine Heat Sink Peak State ------------ > --- POWER ------------ Ion Engine > --- PROPULSION ------- Improved Aluminum Leg Improved Aluminum Leg > --- UTILITY ---------- Medium Matter Pod Medium Matter Pod Targeting Computer > --- WEAPON ----------- Autogun Light Cannon > --- INVENTORY -------- Light Ion Engine Heat Sink [Rating: 11] Favorites ----------- Power Ion Engine Engine Ion Engine Propulsion Improved Aluminum Leg Treads Light Treads Leg Improved Aluminum Leg Wheel Wheel Utility Medium Matter Pod Device Heat Sink Storage Medium Matter Pod Processor Targeting Computer Weapon Autogun Energy Gun Medium Laser Ballistic Gun Autogun Ballistic Cannon Light Cannon Build | -11 -10 -9 ------- Run | Yrd Mat Mat Slots Evolved 2 | . . 2 Power . | . . . Propulsion . | . . . Utility 1 | . . 1 Weapon 1 | . . 1 Parts Attached 22 | 7 14 1 Power 3 | 1 2 . Engine 3 | 1 2 . Core . | . . . Reactor . | . . . Propulsion 6 | 3 3 . Treads 2 | 2 . . Leg 3 | . 3 . Wheel 1 | 1 . . Hover . | . . . Flight . | . . . Utility 7 | 1 5 1 Device 1 | . 1 . Storage 5 | 1 3 1 Processor 1 | . 1 . Hackware . | . . . Protection . | . . . Artifact . | . . . Weapon 6 | 2 4 . Energy Gun 2 | 2 . . Energy Cannon . | . . . Ballistic Gun 3 | . 3 . Ballistic Cannon 1 | . 1 . Launcher . | . . . Special Weapon . | . . . Impact Weapon . | . . . Slashing Weapon . | . . . Piercing Weapon . | . . . Special Melee Weapon . | . . . Unidentified Prototypes . | . . . Parts Lost 5 | . . 5 Power 1 | . . 1 Propulsion 2 | . . 2 Utility . | . . . Weapon 2 | . . 2 Highest Loss Streak 4 | . . 4 To Critical Strikes . | . . . Average Slot Usage (%) 90 | . 93 81 Engine 13 | . 14 10 Treads 2 | . 3 . Leg 23 | . 23 21 Device 1 | . 2 . Storage 18 | . 17 22 Processor 4 | . 2 11 Energy Gun 2 | . 3 . Ballistic Gun 13 | . 14 10 Ballistic Cannon 8 | . 9 5 Naked Turns . | . . . Heaviest Build 93 | 12 93 15 Greatest Support 40 | 40 40 26 Greatest Overweight (x) 6 | 2 6 . Average Overweight (x) . | . 1 . Largest Inventory Capacity 25 | 8 25 5 Average Capacity 13 | 7 15 5 Most Carried 4 | 1 4 2 Average Carried 1 | . 1 2 Final Capacity 8 | 8 5 5 Final Carried 3 | . 3 2 Class Distribution -------------------- 100% | Mutant Dominant Class ---------------- Mutant | -10/Materials Mutant | -9/Materials Resources | -11 -10 -9 ----------- Run | Yrd Mat Mat Matter Collected 851 | 75 598 178 Remotely . | . . . Salvage Created 560 | . 389 171 Parts 42 | . 31 11 Haulers Intercepted 1 | . 1 . Recyclers Shooed 1 | 1 . . Parts Field Recycled . | . . . Retrieved Matter . | . . . Parts Self-Destructed . | . . . Prevented . | . . . Kills | -11 -10 -9 ------- Run | Yrd Mat Mat Combat Hostiles Destroyed 19 | . 14 5 Guns 14 | . 10 4 Cannons 5 | . 4 1 Classes Destroyed 6 | . 6 . Worker 2 | . 2 . Builder 1 | . 1 . Hauler 1 | . 1 . Watcher 1 | . 1 . Swarmer 9 | . 9 . Grunt 10 | . 5 5 Best Kill Streak 4 | . 4 2 Combat Bots Only 3 | . 3 2 Max Kills in Single Turn 1 | . 1 1 Gunslinging . | . . . Exploded . | . . . Melee . | . . . Uniques/NPCs Destroyed . | . . . Combat | -11 -10 -9 -------- Run | Yrd Mat Mat Hostile Shots Fired 125 | . 69 56 Missed 34 | . 20 14 Damage Taken 1077 | . 450 627 Core 282 | . 84 198 Absorbed by Shields . | . . . Regen/Repaired (Parts) 69 | . 69 . Core Remaining (%) 83 | 100 66 . Volleys Fired 98 | 1 66 31 Largest 2 | 2 2 2 Hottest 100 | 100 100 58 Shots Fired 178 | 2 132 44 Gun 109 | 2 76 31 Cannon 69 | . 56 13 Launcher . | . . . Special . | . . . Kinetic 158 | . 114 44 Thermal 20 | 2 18 . Explosive . | . . . Electromagnetic . | . . . Robot Hit Streak 5 | . 4 5 Robot Miss Streak 6 | . 5 6 Penetration Max . | . . . Secondary Targets . | . . . Shots Hit Robots 79 | . 54 25 Core Hits 28 | . 19 9 Critical Kills 1 | . 1 . Critical Parts Destroyed 1 | . 1 . Critical Strikes 5 | . 5 . Burn 1 | . 1 . Destroy 2 | . 2 . Blast 2 | . 2 . Melee Attacks . | . . . Impact . | . . . Slashing . | . . . Piercing . | . . . Sneak Attacks . | . . . Combat Hostiles . | . . . Follow-up Attacks . | . . . Damage Inflicted 1411 | 25 973 413 Guns 882 | 25 543 314 Cannons 499 | . 406 93 Explosions . | . . . Melee . | . . . Ramming 30 | . 24 6 Kinetic 1271 | . 864 407 Thermal 110 | 25 85 . Explosive . | . . . Electromagnetic . | . . . Impact . | . . . Slashing . | . . . Piercing . | . . . Highest Corruption . | . . . Average Corruption . | . . . Corruption Purged . | . . . Corruption Blocked . | . . . Overload Shots . | . . . Overflow Damage . | . . . Projectiles . | . . . Explosions . | . . . Melee . | . . . Knockbacks 6 | . 3 3 Impact . | . . . Kinetic 6 | . 3 3 Secondary . | . . . Self-Inflicted Damage . | . . . Shots . | . . . Rammed 1 | . . 1 Targets Rammed 9 | . 3 6 Kicked 8 | . 3 5 Crushed . | . . . Highest Temperature 156 | 24 156 77 Average Temperature 28 | 16 29 29 Received Heat Transfer 423 | . 120 303 Siege Activations . | . . . Robots Corrupted . | . . . Combat Hostiles . | . . . Parts Fried . | . . . Impact Corruptions . | . . . Robots Melted . | . . . Combat Hostiles . | . . . Parts Melted 1 | . 1 . Heat Transferred 407 | 74 333 . Parts Sabotaged . | . . . Parts Stolen . | . . . Parts Stripped . | . . . Power Chain Reactions . | . . . Alert | -11 -10 -9 ------- Run | Yrd Mat Mat Peak Influence 351 | . 351 287 Initial 148 | . . 148 Average 155 | . 146 216 Maximum Alert Level 1 | . 1 1 Low Security (%) 66 | 100 71 40 Level 1 33 | . 28 59 Level 2 . | . . . Level 3 . | . . . Level 4 . | . . . Level 5 . | . . . High Security . | . . . Max Security . | . . . Squads Dispatched 3 | . 3 . Investigation 1 | . 1 . Extermination . | . . . Reinforcement 2 | . 2 . Assault . | . . . Garrison . | . . . Intercept . | . . . Searches Triggered . | . . . Construction Impeded . | . . . Haulers Reinforced . | . . . Active Scanning Responses . | . . . Cargo Convoy Interrupts . | . . . Stealth | -11 -10 -9 --------- Run | Yrd Mat Mat Distress Signals . | . . . Communications Jammed . | . . . Distress Signals . | . . . Times Spotted 41 | . 32 9 Peak Tracking Total 5 | . 5 4 Tactical Retreats 6 | . 5 1 Traps | -11 -10 -9 ------- Run | Yrd Mat Mat Traps Triggered . | . . . Indirectly . | . . . Trap Hack Attempts . | . . . Triggered . | . . . Disarmed . | . . . Reprogrammed 3 | . 3 . Reused 3 | . 3 . Traps Extracted . | . . . Installed . | . . . Triggered 3 | . 3 . Machines | -11 -10 -9 ---------- Run | Yrd Mat Mat Machines Disabled 1 | . 1 . Max in Single Turn 1 | . 1 . Machines Repaired . | . . . Machines Dismantled . | . . . Machines Sabotaged . | . . . Overloaded Fab Kills . | . . . Hacking | -11 -10 -9 --------- Run | Yrd Mat Mat Machines Accessed 6 | . 5 1 Terminals 4 | . 3 1 Fabricators . | . . . Repair Stations 1 | . 1 . Recycling Units 1 | . 1 . Scanalyzers . | . . . Garrison Access . | . . . Total Hacks 14 | . 13 1 Successful 8 | . 7 1 Failed 6 | . 6 . Catastrophic 1 | . 1 . Database Lockouts . | . . . Manual . | . . . Terminals 9 | . 8 1 Fabricators . | . . . Repair Stations 2 | . 2 . Recycling Units 3 | . 3 . Scanalyzers . | . . . Garrison Access . | . . . Terminal Hacks 5 | . 4 1 Emergency Access Points 1 | . . 1 Reprogram Traps 1 | . 1 . Hauler Manifests 1 | . 1 . Registered Components 1 | . 1 . Zone Layout 1 | . 1 . Fabricator Hacks . | . . . Repair Station Hacks 2 | . 2 . Scan Component 1 | . 1 . Repair 1 | . 1 . Recycling Unit Hacks 1 | . 1 . Report Inventory 1 | . 1 . Scanalyzer . | . . . Garrison Access Hacks . | . . . Unauthorized Hacks . | . . . Terminals . | . . . Fabricators . | . . . Repair Stations . | . . . Recycling Units . | . . . Scanalyzers . | . . . Garrison Access . | . . . Data Cores Recovered . | . . . Used . | . . . Hacking Detections 5 | . 4 1 Full Trace Events 1 | . 1 . Feedback Events . | . . . Feedback Blocked . | . . . Robot Schematics Acquired . | . . . Robots Built . | . . . Authchips . | . . . Time . | . . . Total Robot Build Rating . | . . . Part Schematics Acquired . | . . . Parts Built . | . . . Authchips . | . . . Time . | . . . Total Part Build Rating . | . . . Parts Repaired 1 | . 1 . Time 32 | . 32 . Parts Recycled . | . . . Recycled Matter . | . . . Retrieved Matter . | . . . Retrieved Components . | . . . Parts Scanalyzed . | . . . Part Schematics Acquired . | . . . Parts Damaged . | . . . Bothacking | -11 -10 -9 ------------ Run | Yrd Mat Mat Used RIF Installer . | . . . Robots Hacked . | . . . Non-combat . | . . . Combat . | . . . Robot Hacks Applied . | . . . Relay Couplers Released . | . . . Fabnet Peak Effective % . | . . . Robots Rewired . | . . . Allies Hacked . | . . . Hacks Repelled . | . . . Allies | -11 -10 -9 -------- Run | Yrd Mat Mat Total Allies . | . . . Largest Group . | . . . Highest-Rated Group . | . . . Highest-Rated Ally . | . . . Total Orders . | . . . Ally Attacks . | . . . Total Damage . | . . . Kills . | . . . Allies Corrupted . | . . . Allies Melted . | . . . Intel | -11 -10 -9 ------- Run | Yrd Mat Mat Robot Analysis Total . | . . . Derelict Logs Recovered . | . . . Drone Launches . | . . . Drone Recoveries . | . . . Exploration | -11 -10 -9 ------------- Run | Yrd Mat Mat Turns Passed 1463 | 54 1103 306 Spaces Moved 629 | 30 422 177 Core 4 | 4 . . Treads 70 | 21 49 . Legs 550 | . 373 177 Wheels 5 | 5 . . Hover . | . . . Flight . | . . . Fastest Speed 50 | 50 120 120 Average Speed 174 | 135 200 120 Slowest Speed 540 | 160 540 120 Overloaded Moves . | . . . Propulsion Burnouts . | . . . Robots Hopped . | . . . Cave-ins Triggered . | . . . Exploration Rate (%) 29 | 4 70 14 Regions Visited 2 Branch Regions . Pre-discovered Areas . | . . . Known Exits Taken . | . . . Unknown Exits Taken 2 | 1 1 . Scrap Searched . | . . . Spaces Dug . | . . . Terrain Destroyed 18 | . 18 . Melee . | . . . Projectile . | . . . AOE 18 | . 18 . Terrain Rammed . | . . . Walls Destroyed . | . . . Machines Disabled . | . . . Actions | -11 -10 -9 --------- Run | Yrd Mat Mat Total 824 | 39 554 231 Wait 49 | . 33 16 Move 627 | 29 421 177 Hop . | . . . Pick Up 9 | 1 8 . Fast Attach 9 | 6 3 . Attach 5 | 1 3 1 Detach . | . . . Swap 8 | . 8 . Drop 10 | 1 9 . Fire 98 | 1 66 31 Melee . | . . . Ram 1 | . . 1 Kick 8 | . 3 5 Crush . | . . . Escape Stasis . | . . . Rewire . | . . . Trap . | . . . Miscellaneous . | . . . Route ------- -11/Scrapyard -10/Materials (discovered 2 exits: *Mat / [*Min]) -9/Materials History --------- Turn | Location | Event 11 | -11/Scrapyard | Discovered new exit (range 15) 55 | -11/Scrapyard | Entered Materials 305 | -10/Materials | Build established: Mutant 354 | -10/Materials | Discovered new exit (range 10) 1093 | -10/Materials | Repaired Imp. Aluminum Leg 1140 | -10/Materials | Discovered new exit (range 16) 1158 | -10/Materials | Entered another Materials area 1158 | -9/Materials | Evolved 2 slots: Utility x1, Weapon x1 1464 | -9/Materials | Self-destructed Last Messages --------------- 01341_ Connecting with Scanalyzer... 01351_ G-34 Mercenary destroyed. 01352_ K-01 Serf collects debris. 01373_ G-47 Trooper destroyed. 01380_ Acquired 36 matter. 01387_ K-01 Serf collects debris. 01387_ Acquired 35 matter. 01391_ K-01 Serf collects debris. 01395_ Acquired 3 matter. 01397_ K-01 Serf collects debris. 01454_ Ion Engine destroyed. 01455_ Autogun destroyed. 01456_ Imp. Aluminum Leg destroyed. 01457_ Kicked L-31 Rogue. 01458_ Kicked L-31 Rogue out of the way. 01460_ Kicked L-31 Rogue. 01462_ Imp. Aluminum Leg destroyed. 01463_ Slammed into L-31 Rogue. 01463_ Destabilizing: System interference. 01463_ Targeting Computer temporarily disabled. Map ----- +----------------------------------------------------+ | | | | | | | | | | | | | | | | | | | | | | | | | | | | | ?????????????????????????####???###?????? | | ?????????????????????????# ????? | | ?????????????????????????# """ """ #??? | | ?????????????????????????# """ """ #??? | | ?????????????????????????# """ """ #??? | | ?????????????????????????# """ """ ???? | | ????????????####+#???????? ???### | | ????????????? #########?? ?????# | | ?????????????? ## #??##+######## | | ??????????????# ## #### + | | ??????????????# l## + ######## | | ??????????????#g@## """ #### #??????# | | ??????????????# ## """ #??# #??????# ! | | ?????????????##g ## """ #?## ##?????# ! | | ????????## ### ##+####### #?????# ! | | ????????# ######### | | ????????+ T T | | ????????# ### ####### ## #### | | ????????# ???# #?????# #######??# | | ????????#????# ?????#??????????# #### | | ?????????????#! ???????????????????# | | ?????????????##!!!!#??????????????????# | | ??????????????######??????????????????# | | ??????????????????????????????????????# " | | ??????????????????????????????????????# " | | ??????????????????????????????????????# " | | ??????????????????????????????????????# | | ??????????????????????????????????????# " | | ??????????????????????????????????????### | | ????????????????????????????????????????? | | ????????????????????????????????????????? | | ????????????????????????????????????????? | | ????????????????????????????????????????? | | ????????????????????????????????????????? | | ????????????????????????????????????????? | | ????????????????????????????????????????? | +----------------------------------------------------+ Best States ------------- Heat Dissipation 35 Energy Generation 10 Energy Capacity 250 Matter Stores 164 Matter Capacity 500 Sight Range 16 Terrain Scan Density 10 Evasion (%) 55 Targeting Accuracy 5 Recoil Reduction 2 Item Schematics ----------------- None Robot Schematics ------------------ None Fabricated ------------ Nothing Alien Tech Used ----------------- None Achievements -------------- None Challenges ------------ None Game ------ Seed GravitonShrapnelJammer Manual? 0 Play Time 00:13:39 Cumulative 9.0 hours Start 2024.04.03 @ 18:53:19 End 2024.04.03 @ 19:04:14 Sessions 1 Manual Loads 0 Difficulty Rogue Special Mode None Game No. 12 Rogue 11 Adventurer 1 Explorer 0 Win Type - Total 0 Types 0/0/0/0/0/0/0/0/0 Lore% 9 Gallery% 21 Achievement% 18 Wizard Run 0 Options --------- Layout 1 ASCII 0 Keyboard 0 Movement Mouse Keybinds 0 Fullscreen 1 Font 32/Terminus Map View 50x35 Zoom Use 0% Tactical HUD 1 Map Filters NONE Filters NONE Steam 1 RUN: 553a8c3d-63d0-4225-a70d-c227c3c5f3bf